Workbook

Sheet Leírás
A1: A kalkuláció lépései:
A2: 1. A "dEVE" munkalap "D6:F24" tartományába másolandók a HUF, EUR és USD devizanemekhez tartozó kockázatmentes hozamgörbékből a 9R1 adatszolgáltatásnak megfelelő idősávok közepére számított, folytonos zérókupon kamatlábak.
A3: 2. A "dEVE" munkalap "J6:L24" tartományába illesztendők a HUF, EUR és USD devizanemek esetében előrejelzett nettó pénzáramlások a 9R1 adatszolgáltatásnak megfelelő idősávonként (forintban, egységnyi nagyságrendben).
A4: 3. A szimuláció a "dEVE" munkalapon található "Szimuláció" elnevezésű gombbal indítható el (a futtatási idő kb. 1-2 perc). A szimulált dEVE eredmények a "Szimuláció" munkalapon tekinthetők meg.
A5: 4. A szimuláció sikeres elvégzését követően a dEVE-re vonatkozó diverzifikációs hatás százalékos mértéke (D%dEVE) a "dEVE" munkalap "L2" cellájában jelenik meg.

Sheet dEVE
C2: HUF | D2: EUR | E2: USD | F2: Portfolió | K2: D%dEVE | L2: =Szimuláció!L2 -> -0.0548497681 | O2: Sokkok | P2: HUF_short | Q2: HUF_par | R2: HUF_long | S2: EUR_short | T2: EUR_par | U2: EUR_long | V2: USD_short | W2: USD_par | X2: USD_long
B3: dEVE | C3: =SUMPRODUCT(D27:D45,J27:J45) -> -4541954305 | D3: =SUMPRODUCT(E27:E45,K27:K45) -> 350494198.7 | E3: =SUMPRODUCT(F27:F45,L27:L45) -> 46292506.76 | F3: =SUM(C3:E3) -> -4145167600 | O3: N(0,1) | P3: =_xlfn.NORM.S.INV(RAND()) -> 0.1052948188 | Q3: =_xlfn.NORM.S.INV(RAND()) -> 0.7174786629 | R3: 0.3249641186 | S3: 0.187134249 | T3: 1.358697497 | U3: -0.7155613933 | V3: 0.7572028502 | W3: -1.581382268 | X3: -1.894946002
O4: N(0,σ)ρ | P4: =TRANSPOSE(MMULT($P$33:$X$41,TRANSPOSE($P$3:$X$3))) -> 0.00203678345 | Q4: 0.00826761951 | R4: 0.006405088745 | S4: 0.001412735286 | T4: 0.01214340991 | U4: 0.004032927553 | V4: 0.009484789683 | W4: 0.001978609463 | X4: -0.004662521418
B5: Idősáv (9R1) | C5: T (hónap) | D5: rzero HUF | E5: rzero EUR | F5: rzero USD | G5: DFHUF | H5: DFEUR | I5: DFUSD | J5: CFHUF | K5: CFEUR | L5: CFUSD | M5: Floor
B6: ON | C6: 0.03333333333 | D6: 0.1507773771 | E6: 0.0339204154 | F6: 0.05052398076 | G6: =EXP(-D6*$C6/12) -> 0.9995812616 | H6: =EXP(-E6*$C6/12) -> 0.9999057811 | I6: =EXP(-F6*$C6/12) -> 0.9998596655 | J6: 1.592360215e+11 | K6: -2.736065024e+10 | L6: 2034480219 | M6: -0.01499916667 | O6: Korreláció | P6: HUF_short | Q6: HUF_par | R6: HUF_long | S6: EUR_short | T6: EUR_par | U6: EUR_long | V6: USD_short | W6: USD_par | X6: USD_long
B7: ON_1M | C7: 0.5 | D7: 0.1507773771 | E7: 0.03392087374 | F7: 0.05052976536 | G7: 0.9937373022 | H7: 0.9985876286 | I7: 0.9978968079 | J7: -1.641430126e+11 | K7: 1.603521733e+10 | L7: 1316603390 | M7: -0.0149875 | O7: HUF_short | P7: 1 | Q7: 0.5907308232 | R7: 0.3386694611 | S7: 0.0556986393 | T7: 0.03699604506 | U7: 0.0593502729 | V7: 0.1245611645 | W7: 0.1013862607 | X7: 0.05682245736
B8: 1M_3M | C8: 2 | D8: 0.1507773771 | E8: 0.03491066255 | F8: 0.05169119176 | G8: 0.9751835563 | H8: 0.9941984506 | I8: 0.9914218059 | J8: -1.793115274e+11 | K8: -6941368643 | L8: 8303718151 | M8: -0.01495 | O8: HUF_par | P8: 0.5907308232 | Q8: 1 | R8: 0.7713373493 | S8: -0.07653530031 | T8: 0.2303576495 | U8: 0.2747209435 | V8: 0.07444221018 | W8: 0.3363309176 | X8: 0.2769760408
B9: 3M_6M | C9: 4.5 | D9: 0.1465038447 | E9: 0.03635358842 | F9: 0.05261659223 | G9: 0.9465429404 | H9: 0.9864599073 | I9: 0.9804621645 | J9: 8.1448214e+10 | K9: 5.39316255e+10 | L9: -332648276 | M9: -0.0148875 | O9: HUF_long | P9: 0.3386694611 | Q9: 0.7713373493 | R9: 1 | S9: -0.002456256705 | T9: 0.3093311649 | U9: 0.3887509219 | V9: 0.1038362319 | W9: 0.3873270631 | X9: 0.4119827677
B10: 6M_9M | C10: 7.5 | D10: 0.1357424999 | E10: 0.0372575647 | F10: 0.05314536107 | G10: 0.9186601194 | H10: 0.9769830482 | I10: 0.9673297383 | J10: -3834489834 | K10: -4497644846 | L10: -1446030354 | M10: -0.0148125 | O10: EUR_short | P10: 0.0556986393 | Q10: -0.07653530031 | R10: -0.002456256705 | S10: 1 | T10: 0.5136867374 | U10: 0.2579712741 | V10: 0.5884827387 | W10: 0.2599924609 | X10: 0.3106378455
B11: 9M_12M | C11: 10.5 | D11: 0.126428916 | E11: 0.03759407027 | F11: 0.05287101423 | G11: 0.895274144 | H11: 0.9676403389 | I11: 0.9547916427 | J11: -3161661268 | K11: -8755322559 | L11: -533960113.6 | M11: -0.0147375 | O11: EUR_par | P11: 0.03699604506 | Q11: 0.2303576495 | R11: 0.3093311649 | S11: 0.5136867374 | T11: 1 | U11: 0.8220762061 | V11: 0.3295762671 | W11: 0.7123592233 | X11: 0.6596513019
B12: 12M_18M | C12: 15 | D12: 0.1143361458 | E12: 0.0372051015 | F12: 0.05115949576 | G12: 0.866823254 | H12: 0.9545584734 | I12: 0.9380524922 | J12: 7.30408219e+10 | K12: -260915725.8 | L12: -1039895638 | M12: -0.014625 | O12: EUR_long | P12: 0.0593502729 | Q12: 0.2747209435 | R12: 0.3887509219 | S12: 0.2579712741 | T12: 0.8220762061 | U12: 1 | V12: 0.1986258355 | W12: 0.6646881833 | X12: 0.7377598502
B13: 18M_2Y | C13: 21 | D13: 0.1014331539 | E13: 0.03616022054 | F13: 0.04835458559 | G13: 0.8373542842 | H13: 0.938680244 | I13: 0.9188609032 | J13: 4965915509 | K13: -6421723835 | L13: -1518390212 | M13: -0.014475 | O13: USD_short | P13: 0.1245611645 | Q13: 0.07444221018 | R13: 0.1038362319 | S13: 0.5884827387 | T13: 0.3295762671 | U13: 0.1986258355 | V13: 1 | W13: 0.3662410314 | X13: 0.3038866494
B14: 2Y_3Y | C14: 30 | D14: 0.08931764792 | E14: 0.03423940049 | F14: 0.04474293624 | G14: 0.7998795543 | H14: 0.9179627181 | I14: 0.8941718104 | J14: 5.158722344e+10 | K14: -8912412064 | L14: -382875451.1 | M14: -0.01425 | O14: USD_par | P14: 0.1013862607 | Q14: 0.3363309176 | R14: 0.3873270631 | S14: 0.2599924609 | T14: 0.7123592233 | U14: 0.6646881833 | V14: 0.3662410314 | W14: 1 | X14: 0.8342911761
B15: 3Y_4Y | C15: 42 | D15: 0.07876103935 | E15: 0.03194011958 | F15: 0.04120251538 | G15: 0.7590682097 | H15: 0.8942316523 | I15: 0.8657069663 | J15: 1.014382666e+11 | K15: -1269702576 | L15: -547511591.1 | M15: -0.01395 | O15: USD_long | P15: 0.05682245736 | Q15: 0.2769760408 | R15: 0.4119827677 | S15: 0.3106378455 | T15: 0.6596513019 | U15: 0.7377598502 | V15: 0.3038866494 | W15: 0.8342911761 | X15: 1
B16: 4Y_5Y | C16: 54 | D16: 0.07263324555 | E16: 0.03020748439 | F16: 0.0389096437 | G16: 0.7211921986 | H16: 0.8729005216 | I16: 0.8393786219 | J16: 3316471229 | K16: -270598495.8 | L16: -1038444000 | M16: -0.01365
B17: 5Y_6Y | C17: 66 | D17: 0.06903410123 | E17: 0.02904676417 | F17: 0.03743147289 | G17: 0.6840751105 | H17: 0.8523507121 | I17: 0.8139363575 | J17: 7211868198 | K17: -1035264215 | L17: -15295134.71 | M17: -0.01335 | O17: Szórás | P17: HUF_short | Q17: HUF_par | R17: HUF_long | S17: EUR_short | T17: EUR_par | U17: EUR_long | V17: USD_short | W17: USD_par | X17: USD_long
B18: 6Y_7Y | C18: 78 | D18: 0.06694102705 | E18: 0.02830354884 | F18: 0.03643198642 | G18: 0.6471891513 | H18: 0.8319582103 | I18: 0.7891428586 | J18: 1.731994791e+10 | K18: -325587331.1 | L18: -9563674.955 | M18: -0.01305 | O18: Sztenderd sokk (s) | P18: 0.045 | Q18: 0.03 | R18: 0.02 | S18: 0.025 | T18: 0.02 | U18: 0.01 | V18: 0.03 | W18: 0.02 | X18: 0.015
B19: 7Y_8Y | C19: 90 | D19: 0.06571927557 | E19: 0.02787413445 | F19: 0.0357073671 | G19: 0.6108556702 | H19: 0.811349792 | I19: 0.7650567589 | J19: 6456550791 | K19: -13601880.3 | L19: -3036124.591 | M19: -0.01275 | O19: Szórás (σ) | P19: 0.01934362462 | Q19: 0.01289574974 | R19: 0.008597166496 | S19: 0.01074645812 | T19: 0.008597166496 | U19: 0.004298583248 | V19: 0.01289574974 | W19: 0.008597166496 | X19: 0.006447874872
B20: 8Y_9Y | C20: 102 | D20: 0.06493299292 | E20: 0.02760141666 | F20: 0.03519893985 | G20: 0.5758371178 | H20: 0.7908776177 | I20: 0.7414177935 | J20: 1.675764801e+10 | K20: 66942364.18 | L20: -2276396.338 | M20: -0.01245
B21: 9Y_10Y | C21: 114 | D21: 0.06449823755 | E21: 0.02742661692 | F21: 0.03484661045 | G21: 0.5418677794 | H21: 0.7706254195 | I21: 0.718174431 | J21: 3558411373 | K21: -164616172.5 | L21: -20271581.82 | M21: -0.01215 | O21: Kovariancia | P21: HUF_short | Q21: HUF_par | R21: HUF_long | S21: EUR_short | T21: EUR_par | U21: EUR_long | V21: USD_short | W21: USD_par | X21: USD_long
B22: 10Y_15Y | C22: 150 | D22: 0.06394122093 | E22: 0.02745876706 | F22: 0.03435202024 | G22: 0.4496592246 | H22: 0.7094717583 | I22: 0.6508993526 | J22: 3948570403 | K22: -562078105 | L22: -32585327.61 | M22: -0.01125 | O22: HUF_short | P22: 0.0003741758133 | Q22: 0.0001473581241 | R22: 5.632085379e-05 | S22: 1.157837981e-05 | T22: 6.152455665e-06 | U22: 4.934985917e-06 | V22: 3.107185001e-05 | W22: 1.68605718e-05 | X22: 7.087196398e-06
B23: 15Y_20Y | C23: 210 | D23: 0.06340046047 | E23: 0.02697081947 | F23: 0.03384684713 | G23: 0.3297211248 | H23: 0.6237601618 | I23: 0.553042833 | J23: 31513574.15 | K23: -45466571.44 | L23: -23898627.63 | M23: -0.00975 | O23: HUF_par | P23: 0.0001473581241 | Q23: 0.0001663003614 | R23: 8.551578666e-05 | S23: -1.060654009e-05 | T23: 2.553904025e-05 | U23: 1.522873073e-05 | V23: 1.237976646e-05 | W23: 3.728796878e-05 | X23: 2.303060785e-05
B24: 20Y_ | C24: 240 | D24: 0.0634779395 | E24: 0.02644465556 | F24: 0.03350158687 | G24: 0.2809555549 | H24: 0.5892568507 | I24: 0.5116923378 | J24: -17425096.9 | K24: 28037676.07 | L24: 0 | M24: -0.009 | O24: HUF_long | P24: 5.632085379e-05 | Q24: 8.551578666e-05 | R24: 7.391127175e-05 | S24: -2.26931321e-07 | T24: 2.286305979e-05 | U24: 1.436653752e-05 | V24: 1.151200193e-05 | W24: 2.862783582e-05 | X24: 2.283762773e-05
O25: EUR_short | P25: 1.157837981e-05 | Q25: -1.060654009e-05 | R25: -2.26931321e-07 | S25: 0.0001154863621 | T25: 4.745905006e-05 | U25: 1.191686559e-05 | V25: 8.155407679e-05 | W25: 2.402046679e-05 | X25: 2.152466083e-05
B26: Idősáv (9R1) | C26: T (hónap) | D26: PV(CF)HUF | E26: PV(CF)EUR | F26: PV(CF)USD | G26: Kamat sokkHUF | H26: Kamat sokkEUR | I26: Kamat sokkUSD | J26: SokkHUF | K26: SokkEUR | L26: SokkUSD | O26: EUR_par | P26: 6.152455665e-06 | Q26: 2.553904025e-05 | R26: 2.286305979e-05 | S26: 4.745905006e-05 | T26: 7.391127175e-05 | U26: 3.038034893e-05 | V26: 3.653910156e-05 | W26: 5.265137614e-05 | X26: 3.656674998e-05
B27: ON | C27: 0.03333333333 | D27: =J6*G6 -> 1.591693433e+11 | E27: =K6*H6 -> -2.735807235e+10 | F27: =L6*I6 -> 2034194711 | G27: =MAX(IF(C27<60,$P$4+($Q$4-$P$4)/60*C27,$Q$4+($R$4-$Q$4)/180*(C27-60)),MIN(0,M6-D6)) -> 0.002040245025 | H27: =MAX(IF(C27<60,$S$4+($T$4-$S$4)/60*C27,$T$4+($U$4-$T$4)/180*(C27-60)),MIN(0,M6-E6)) -> 0.001418696772 | I27: =MAX(IF(C27<60,$V$4+($W$4-$V$4)/60*C27,$W$4+($X$4-$W$4)/180*(C27-60)),MIN(0,M6-F6)) -> 0.009480619583 | J27: =EXP(-G27*C27/12)-1 -> -5.667331233e-06 | K27: =EXP(-H27*C27/12)-1 -> -3.940816602e-06 | L27: =EXP(-I27*C27/12)-1 -> -2.633470763e-05 | O27: EUR_long | P27: 4.934985917e-06 | Q27: 1.522873073e-05 | R27: 1.436653752e-05 | S27: 1.191686559e-05 | T27: 3.038034893e-05 | U27: 1.847781794e-05 | V27: 1.101051608e-05 | W27: 2.456397447e-05 | X27: 2.044828829e-05
B28: ON_1M | C28: 0.5 | D28: -1.631150345e+11 | E28: 1.601256965e+10 | F28: 1313834320 | G28: 0.002088707083 | H28: 0.001502157575 | I28: 0.009422238181 | J28: -8.702567485e-05 | K28: -6.258794025e-05 | L28: -0.0003925162029 | O28: USD_short | P28: 3.107185001e-05 | Q28: 1.237976646e-05 | R28: 1.151200193e-05 | S28: 8.155407679e-05 | T28: 3.653910156e-05 | U28: 1.101051608e-05 | V28: 0.0001663003614 | W28: 4.06040106e-05 | X28: 2.526822982e-05
B29: 1M_3M | C29: 2 | D29: -1.74861653e+11 | E29: -6901097950 | F29: 8232487244 | G29: 0.002244477985 | H29: 0.001770424441 | I29: 0.009234583676 | J29: -0.0003740097051 | K29: -0.000295027211 | L29: -0.001537913476 | O29: USD_par | P29: 1.68605718e-05 | Q29: 3.728796878e-05 | R29: 2.862783582e-05 | S29: 2.402046679e-05 | T29: 5.265137614e-05 | U29: 2.456397447e-05 | V29: 4.06040106e-05 | W29: 7.391127175e-05 | X29: 4.624764138e-05
B30: 3M_6M | C30: 4.5 | D30: 7.709423198e+10 | E30: 5.32013863e+10 | F30: -326149048.7 | G30: 0.002504096154 | H30: 0.002217535883 | I30: 0.008921826166 | J30: -0.0009385953014 | K30: -0.0008312302927 | L30: -0.003340094245 | O30: USD_long | P30: 7.087196398e-06 | Q30: 2.303060785e-05 | R30: 2.283762773e-05 | S30: 2.152466083e-05 | T30: 3.656674998e-05 | U30: 2.044828829e-05 | V30: 2.526822982e-05 | W30: 4.624764138e-05 | X30: 4.157509036e-05
B31: 6M_9M | C31: 7.5 | D31: -3522592888 | E31: -4394122772 | F31: -1398788164 | G31: 0.002815637957 | H31: 0.002754069614 | I31: 0.008546517155 | J31: -0.001758226229 | K31: -0.001719812933 | L31: -0.005327332387
B32: 9M_12M | C32: 10.5 | D32: -2830553585 | E32: -8472003288 | F32: -509820654 | G32: 0.00312717976 | H32: 0.003290603346 | I32: 0.008171208144 | J32: -0.002732542082 | K32: -0.002875136782 | L32: -0.007124308063 | O32: Cholesky | P32: HUF_short | Q32: HUF_par | R32: HUF_long | S32: EUR_short | T32: EUR_par | U32: EUR_long | V32: USD_short | W32: USD_par | X32: USD_long
B33: 12M_18M | C33: 15 | D33: 6.331348291e+10 | E33: -249059316.9 | F33: -975476695.1 | G33: 0.003594492465 | H33: 0.004095403942 | I33: 0.007608244628 | J33: -0.004483036638 | K33: -0.005106173874 | L33: -0.009465225848 | O33: HUF_short | P33: 0.01934362462 | Q33: 0 | R33: 0 | S33: 0 | T33: 0 | U33: 0 | V33: 0 | W33: 0 | X33: 0
B34: 18M_2Y | C34: 21 | D34: 4158230627 | E34: -6027945297 | F34: -1395189401 | G34: 0.004217576071 | H34: 0.005168471405 | I34: 0.006857626606 | J34: -0.007353587217 | K34: -0.009004043575 | L34: -0.0119291236 | O34: HUF_par | P34: 0.007617916862 | Q34: 0.0104051768 | R34: 0 | S34: 0 | T34: 0 | U34: 0 | V34: 0 | W34: 0 | X34: 0
B35: 2Y_3Y | C35: 30 | D35: 4.126356529e+10 | E35: -8181262004 | F35: -342356435.3 | G35: 0.00515220148 | H35: 0.006778072598 | I35: 0.005731699573 | J35: -0.01279790503 | K35: -0.01680241942 | L35: -0.01422707386 | O35: HUF_long | P35: 0.002911597744 | Q35: 0.006086919843 | R35: 0.005327595814 | S35: 0 | T35: 0 | U35: 0 | V35: 0 | W35: 0 | X35: 0
B36: 3Y_4Y | C36: 42 | D36: 7.699856342e+10 | E36: -1135408232 | F36: -473984598.5 | G36: 0.006398368692 | H36: 0.008924207523 | I36: 0.004230463529 | J36: -0.02214539967 | K36: -0.03075196166 | L36: -0.01469754335 | O36: EUR_short | P36: 0.0005985630946 | Q36: -0.001457576769 | R36: 0.001295602543 | S36: 0.0105510648 | T36: 0 | U36: 0 | V36: 0 | W36: 0 | X36: 0
B37: 4Y_5Y | C37: 54 | D37: 2391813177 | E37: -236205568.1 | F37: -871647693.7 | G37: 0.007644535904 | H37: 0.01107034245 | I37: 0.002729227485 | J37: -0.0338154443 | K37: -0.04859604791 | L37: -0.01220641357 | O37: EUR_par | P37: 0.000318061159 | Q37: 0.002221593851 | R37: 0.001579385943 | S37: 0.004592954215 | T37: 0.006729408684 | U37: 0 | V37: 0 | W37: 0 | X37: 0
B38: 5Y_6Y | C38: 66 | D38: 4933459534 | E38: -882408190.7 | F38: -12449266.23 | G38: 0.008205535151 | H38: 0.0118730605 | I38: 0.001757238433 | J38: -0.04412721353 | K38: -0.06321533158 | L38: -0.009618257194 | O38: EUR_long | P38: 0.0002551220888 | Q38: 0.001276790595 | R38: 0.001098432166 | S38: 0.00115647548 | T38: 0.003033878321 | U38: 0.0022436867 | V38: 0 | W38: 0 | X38: 0
B39: 6Y_7Y | C39: 78 | D39: 1.120928239e+10 | E39: -270875053.3 | F39: -7547105.792 | G39: 0.008081366434 | H39: 0.01133236167 | I39: 0.001314496375 | J39: -0.05117308319 | K39: -0.07101283007 | L39: -0.008507828272 | O39: USD_short | P39: 0.001606309605 | Q39: 1.374637255e-05 | R39: 0.001267251061 | S39: 0.007484626752 | T39: -5.652331549e-05 | U39: 0.0003150475488 | V39: 0.01029523818 | W39: 0 | X39: 0
B40: 7Y_8Y | C40: 90 | D40: 3944020660 | E40: -11035882.75 | F40: -2322807.639 | G40: 0.007957197716 | H40: 0.01079166285 | I40: 0.000871754316 | J40: -0.05793309534 | K40: -0.07774864326 | L40: -0.006516830125 | O40: USD_par | P40: 0.0008716345634 | Q40: 0.00294545011 | R40: 0.001531885704 | S40: 0.00244593732 | T40: 0.004781554194 | U40: 0.0006965703213 | V40: 0.00184221199 | W40: 0.00542257777 | X40: 0
B41: 8Y_9Y | C41: 102 | D41: 9649675733 | E41: 52943217.51 | F41: -1687760.75 | G41: 0.007833028998 | H41: 0.01025096403 | I41: 0.0004290122572 | J41: -0.06441263259 | K41: -0.08344499234 | L41: -0.0036399634 | O41: USD_long | P41: 0.000366384095 | Q41: 0.001945139873 | R41: 0.001864059226 | S41: 0.002059078213 | T41: 0.002931548175 | U41: 0.002027245063 | V41: 0.0006222609054 | W41: 0.002901067151 | X41: 0.002904422068
B42: 9Y_10Y | C42: 114 | D42: 1928188469 | E42: -126857407 | F42: -14558531.74 | G42: 0.007708860281 | H42: 0.009710265203 | I42: -1.372980149e-05 | J42: -0.07061683159 | K42: -0.08812058626 | L42: 0.000130441621
B43: 10Y_15Y | C43: 150 | D43: 1775511106 | E43: -398778541.4 | F43: -21209768.65 | G43: 0.007336354128 | H43: 0.008088168732 | I43: -0.001341955978 | J43: -0.08762521659 | K43: -0.09615926223 | L43: 0.01691593079
B44: 15Y_20Y | C44: 210 | D44: 10390691.11 | E44: -28360235.96 | F44: -13216964.73 | G44: 0.00671551054 | H44: 0.005384674613 | I44: -0.003555666271 | J44: -0.1108785463 | K44: -0.08992822206 | L44: 0.06420086899
B45: 20Y_ | C45: 240 | D45: -4895677.767 | E45: 16521392.7 | F45: 0 | G45: 0.006405088745 | H45: 0.004032927553 | I45: -0.004662521418 | J45: -0.1202361633 | K45: -0.07749137273 | L45: 0.09773660523
A999: 0 | N999: 0 | O999: 0 | P999: 0
A1000: 0 | N1000: 0 | O1000: 0 | P1000: 0
A1001: 0 | N1001: 0 | O1001: 0 | P1001: 0

Sheet Szimuláció
A1: Sorszám | B1: dEVEHUF | C1: dEVEEUR | D1: dEVEUSD | E1: dEVEPortfolió | G1: dEVEHUF VaR | H1: dEVEEUR VaR | I1: dEVEUSD VaR | J1: dEVEdiverz. nélkül | K1: dEVEdiverz. | L1: D%dEVE
A2: 1 | B2: 1.078813452e+10 | C2: -8069011.28 | D2: -177123030.7 | E2: 1.060294248e+10 | G2: =PERCENTILE(B:B,0.01) -> -1.955766557e+10 | H2: =PERCENTILE(C:C,0.01) -> -742236764.7 | I2: =PERCENTILE(D:D,0.01) -> -217660849.3 | J2: =G2+H2+I2 -> -2.051756318e+10 | K2: =PERCENTILE(E:E,0.01) -> -1.93921796e+10 | L2: =(K2-J2)/J2 -> -0.0548497681
A3: 2 | B3: 6480902864 | C3: -522312300.8 | D3: -88497648.02 | E3: 5870092915
A4: 3 | B4: 246891116.7 | C4: -95636695.67 | D4: -99137602.01 | E4: 52116819.06
A5: 4 | B5: 1212647881 | C5: -222620543.6 | D5: -10516738.28 | E5: 979510599.3
A6: 5 | B6: -1.288515933e+10 | C6: 89611596.02 | D6: 22875499.69 | E6: -1.277267223e+10 | G6: Futtatás kezdete | H6: 2023-10-09T15:32:55
A7: 6 | B7: 2320375267 | C7: 21606284.51 | D7: -43381705.84 | E7: 2298599845 | G7: Futtatás vége | H7: 2023-10-09T15:34:29
A8: 7 | B8: 1.950730775e+10 | C8: -9090512.052 | D8: 59418484.78 | E8: 1.955763573e+10 | G8: Futtatási idő | H8: =H7-H6 -> 00:01:34
A9: 8 | B9: -7954777803 | C9: 310831240.7 | D9: 49969104.22 | E9: -7593977458
A10: 9 | B10: -8835394284 | C10: -172709832.9 | D10: -81618469.34 | E10: -9089722586
A11: 10 | B11: 283256794.7 | C11: 377856852.9 | D11: 134188912.7 | E11: 795302560.3
A12: 11 | B12: -2049179321 | C12: 335092778.3 | D12: 224879075.3 | E12: -1489207468
A13: 12 | B13: 1.317298946e+10 | C13: -79869893.41 | D13: -86286234.71 | E13: 1.300683334e+10
A14: 13 | B14: -813751342.4 | C14: -47422999.75 | D14: 19571127.09 | E14: -841603215.1
A15: 14 | B15: -587908058.5 | C15: 427857888.6 | D15: 138759118.3 | E15: -21291051.7
A16: 15 | B16: 3128986892 | C16: -170804235.7 | D16: 35121472.9 | E16: 2993304129
A17: 16 | B17: -252863949.1 | C17: 526644488.8 | D17: 89026811.45 | E17: 362807351.1
A18: 17 | B18: -1.26723741e+10 | C18: 118877103.7 | D18: 116822935.4 | E18: -1.243667406e+10
A19: 18 | B19: -9301210651 | C19: -191142694.6 | D19: -12900795.09 | E19: -9505254141
A20: 19 | B20: -1315794805 | C20: 152256274 | D20: 44920197.09 | E20: -1118618334
A21: 20 | B21: -1785424738 | C21: 483067895.5 | D21: 80459790.51 | E21: -1221897052
A22: 21 | B22: 1350509775 | C22: -189943951.7 | D22: 18381614.09 | E22: 1178947438
A23: 22 | B23: 2903816427 | C23: 218886380.9 | D23: 17897009.41 | E23: 3140599818
A24: 23 | B24: -6358368347 | C24: -156064711.4 | D24: -20571336.74 | E24: -6535004395
A25: 24 | B25: -7701418677 | C25: 137959525.7 | D25: -43378526.69 | E25: -7606837678
A26: 25 | B26: 4419136944 | C26: 136082445.4 | D26: 19993079.22 | E26: 4575212469
A27: 26 | B27: -5522366781 | C27: 199402314.4 | D27: 39681966.63 | E27: -5283282500
A28: 27 | B28: 1.000013578e+10 | C28: 504261496.8 | D28: 117609688.2 | E28: 1.062200697e+10
A29: 28 | B29: -1.083707408e+10 | C29: 391073825.7 | D29: 53442105.59 | E29: -1.039255815e+10
A30: 29 | B30: -1.311140102e+10 | C30: 165736493.2 | D30: 100879153.2 | E30: -1.284478537e+10
A31: 30 | B31: 1202918528 | C31: 268510304.3 | D31: 17510934.17 | E31: 1488939767
A32: 31 | B32: -7538406433 | C32: 30220086.73 | D32: -45052720.73 | E32: -7553239067
A33: 32 | B33: 7646991027 | C33: -213819454.9 | D33: -138031003.5 | E33: 7295140569
A34: 33 | B34: -7543905385 | C34: 555349532 | D34: 97079069.4 | E34: -6891476784
A35: 34 | B35: 1.033033434e+10 | C35: 211425235.3 | D35: 75687853.8 | E35: 1.061744743e+10
A36: 35 | B36: -2257055564 | C36: 80872311.16 | D36: 33203078.87 | E36: -2142980174
A37: 36 | B37: 1614288748 | C37: 46811375.17 | D37: -115577347.8 | E37: 1545522775
A38: 37 | B38: 1.63245936e+10 | C38: -691718669.5 | D38: -120620141 | E38: 1.551225479e+10
A39: 38 | B39: -4972642101 | C39: 253779606.6 | D39: 59498102.39 | E39: -4659364392
A40: 39 | B40: -7055957720 | C40: -116952131.5 | D40: -59900238.03 | E40: -7232810089
A41: 40 | B41: 1.578305571e+10 | C41: -604128660.5 | D41: -185235723.7 | E41: 1.499369133e+10
A42: 41 | B42: 1.50595263e+10 | C42: 80987068.69 | D42: 66785830.93 | E42: 1.52072992e+10
A43: 42 | B43: 2.048663279e+10 | C43: -294555017.6 | D43: -38461636.65 | E43: 2.015361614e+10
A44: 43 | B44: -204289081.7 | C44: 134500023.3 | D44: 104929009.5 | E44: 35139951.05
A45: 44 | B45: 2508140514 | C45: -563746467.5 | D45: -77438701.79 | E45: 1866955344
A46: 45 | B46: -2391075618 | C46: -396927352.5 | D46: -120785302.3 | E46: -2908788273
A47: 46 | B47: -1.607105777e+10 | C47: 472916108.7 | D47: 152839468.7 | E47: -1.544530219e+10
A48: 47 | B48: 8083441026 | C48: 29238232.09 | D48: 42227866.4 | E48: 8154907125
A49: 48 | B49: 1696943003 | C49: 172695629.6 | D49: 91364477.77 | E49: 1961003111
A50: 49 | B50: -8958965656 | C50: -223864429.8 | D50: -57850175.85 | E50: -9240680261
A51: 50 | B51: -2348147705 | C51: 44794518.52 | D51: 56376544.57 | E51: -2246976642
A52: 51 | B52: 1435427352 | C52: 347154750.8 | D52: 171655507.2 | E52: 1954237610
A53: 52 | B53: -1.204808945e+10 | C53: 558909839.2 | D53: 185261204.9 | E53: -1.130391841e+10
A54: 53 | B54: -5719018417 | C54: 320635633.2 | D54: 125663461.9 | E54: -5272719322
A55: 54 | B55: -1.89696504e+10 | C55: 244752458.5 | D55: 68749979.13 | E55: -1.865614796e+10
A56: 55 | B56: -1996905033 | C56: -459055445.8 | D56: -74782159.39 | E56: -2530742639
A57: 56 | B57: 6461608978 | C57: -319680808.5 | D57: -64128606.43 | E57: 6077799563
A58: 57 | B58: 4144159347 | C58: -182829083.9 | D58: -50531551.91 | E58: 3910798711
A59: 58 | B59: 858578670.6 | C59: 434374391.2 | D59: 134431559.5 | E59: 1427384621
A60: 59 | B60: -8253840198 | C60: 103269134.8 | D60: 70965530.63 | E60: -8079605533
A61: 60 | B61: 7434848033 | C61: 512327694.4 | D61: 112927624 | E61: 8060103352
A62: 61 | B62: -4575463377 | C62: 320007982.4 | D62: 113370798 | E62: -4142084597
A63: 62 | B63: 4269053704 | C63: -95887781.28 | D63: 1903007.939 | E63: 4175068930
A64: 63 | B64: -5642581873 | C64: -153044944.1 | D64: 110523554.4 | E64: -5685103263
A65: 64 | B65: 9309117203 | C65: 95711808.64 | D65: -65479988.6 | E65: 9339349023
A66: 65 | B66: -1446085029 | C66: -95524178.08 | D66: 64166517.89 | E66: -1477442690
A67: 66 | B67: 4280553948 | C67: -285587882.3 | D67: -72399174.66 | E67: 3922566891
A68: 67 | B68: 3656633151 | C68: -408952303.7 | D68: -50378100.83 | E68: 3197302746
A69: 68 | B69: -4897450720 | C69: -68934140.98 | D69: -79902566.69 | E69: -5046287428
A70: 69 | B70: -9124882882 | C70: -141741139.4 | D70: -24889666.97 | E70: -9291513688
A71: 70 | B71: 5682175270 | C71: -171681181 | D71: -14699556.76 | E71: 5495794532
A72: 71 | B72: 6330662796 | C72: 201315215.5 | D72: -29055395.9 | E72: 6502922616
A73: 72 | B73: 2.593601414e+10 | C73: -349669597.4 | D73: -146509823.6 | E73: 2.543983472e+10
A74: 73 | B74: -8756311061 | C74: -285636822.6 | D74: -89493569.28 | E74: -9131441453
A75: 74 | B75: 9688646878 | C75: 309824815.5 | D75: 97756509.27 | E75: 1.00962282e+10
A76: 75 | B76: -5326809953 | C76: -275424467.7 | D76: -44282198.71 | E76: -5646516619
A77: 76 | B77: 2618713012 | C77: -839424393.7 | D77: -176911128.8 | E77: 1602377490
A78: 77 | B78: 2.778625801e+10 | C78: 84702971.19 | D78: 47634986.66 | E78: 2.791859597e+10
A79: 78 | B79: 325784131.7 | C79: -343033536.2 | D79: -134691547.8 | E79: -151940952.3
A80: 79 | B80: 3447270253 | C80: -234673172.9 | D80: 49200764.55 | E80: 3261797845
A81: 80 | B81: -5407088217 | C81: -42226890.46 | D81: -80318102.14 | E81: -5529633209
A82: 81 | B82: 5205768044 | C82: -537412673.3 | D82: -81854323.09 | E82: 4586501047
A83: 82 | B83: -4912353249 | C83: -44844352.12 | D83: 95118881.47 | E83: -4862078719
A84: 83 | B84: 8897009121 | C84: 185987855.1 | D84: 46889345.51 | E84: 9129886321
A85: 84 | B85: -690259693.2 | C85: 175253415.6 | D85: 5433948.228 | E85: -509572329.4
A86: 85 | B86: -5659630343 | C86: 98978411.62 | D86: 39972703.23 | E86: -5520679228
A87: 86 | B87: 4346219614 | C87: -74486769.63 | D87: -55035521.68 | E87: 4216697323
A88: 87 | B88: 4437327716 | C88: -343370328.8 | D88: -42339742.67 | E88: 4051617645
A89: 88 | B89: 6435865022 | C89: -48796563.25 | D89: 18420545.19 | E89: 6405489004
A90: 89 | B90: 6207867807 | C90: -883381915.4 | D90: -219315645.9 | E90: 5105170245
A91: 90 | B91: 2868505040 | C91: 278927795 | D91: 93319894.39 | E91: 3240752730
A92: 91 | B92: -1.824871024e+10 | C92: 202987388.3 | D92: 23121991.19 | E92: -1.802260086e+10
A93: 92 | B93: -1.398449529e+10 | C93: 1014034337 | D93: 259950997.7 | E93: -1.271050995e+10
A94: 93 | B94: -1548723008 | C94: -86688565.65 | D94: -79090037.34 | E94: -1714501611
A95: 94 | B95: -1.542768366e+10 | C95: -300122029.6 | D95: -21210853.38 | E95: -1.574901654e+10
A96: 95 | B96: -288824129.6 | C96: -251655656.3 | D96: -28216087.08 | E96: -568695873
A97: 96 | B97: -4233435679 | C97: 78618224.66 | D97: 86088975.35 | E97: -4068728479
A98: 97 | B98: -4180233465 | C98: 749705947.6 | D98: 162153808.6 | E98: -3268373709
A99: 98 | B99: 1.43393805e+10 | C99: 311338823.1 | D99: 41796885.88 | E99: 1.469251621e+10
A100: 99 | B100: -6394727614 | C100: 161306550.8 | D100: -29251466.06 | E100: -6262672529
A101: 100 | B101: 999325226.1 | C101: 44168503.5 | D101: 41809622.87 | E101: 1085303352
A102: 101 | B102: -1.033153524e+10 | C102: 179516403.4 | D102: -7072080.907 | E102: -1.015909092e+10
A103: 102 | B103: -509779805.9 | C103: -118164624.5 | D103: 35209982.23 | E103: -592734448.2
A104: 103 | B104: -127218074.3 | C104: 179949974.2 | D104: 52756788.44 | E104: 105488688.4
A105: 104 | B105: 8655140009 | C105: 71867120.56 | D105: -58850072.52 | E105: 8668157058
A106: 105 | B106: 1.281662229e+10 | C106: 328799492.5 | D106: -22796429.77 | E106: 1.312262535e+10
A107: 106 | B107: -9173896231 | C107: 226102968.6 | D107: 113109689.2 | E107: -8834683573
A108: 107 | B108: -1.067195621e+10 | C108: 261301866.9 | D108: -58896902 | E108: -1.046955125e+10
A109: 108 | B109: 4880897095 | C109: 235243502.8 | D109: -2071300.679 | E109: 5114069298
A110: 109 | B110: -1.836353417e+10 | C110: -145656587.5 | D110: 93591077.17 | E110: -1.841559968e+10
A111: 110 | B111: 2063965057 | C111: 218438318.4 | D111: 11976173.68 | E111: 2294379549
A112: 111 | B112: 2729465612 | C112: -86059367.33 | D112: 15902608.29 | E112: 2659308853
A113: 112 | B113: -2498752068 | C113: -131459161.8 | D113: -19622949.03 | E113: -2649834179
A114: 113 | B114: 2.294318969e+10 | C114: 699008675 | D114: 160437445.3 | E114: 2.380263581e+10
A115: 114 | B115: -1936175779 | C115: -133656851.4 | D115: -146064663 | E115: -2215897293
A116: 115 | B116: 8370232087 | C116: -518964974.4 | D116: -53871159.72 | E116: 7797395953
A117: 116 | B117: 9080942086 | C117: 275555063.6 | D117: 53607821.25 | E117: 9410104970
A118: 117 | B118: -25182629.3 | C118: -240460993.9 | D118: -71040860.7 | E118: -336684483.9
A119: 118 | B119: 463866889.4 | C119: -57150450.78 | D119: 64272845.27 | E119: 470989283.9
A120: 119 | B120: 4414645227 | C120: -501671969.6 | D120: -93448604.93 | E120: 3819524653
A121: 120 | B121: 4024461055 | C121: 136161973 | D121: 85732701.8 | E121: 4246355729
A122: 121 | B122: -9431719336 | C122: 454898150.4 | D122: 174754250 | E122: -8802066936
A123: 122 | B123: 1.58993273e+10 | C123: -828235263.3 | D123: -90071406.13 | E123: 1.498102063e+10
A124: 123 | B124: -1013313771 | C124: -140528579.6 | D124: -60053133.75 | E124: -1213895484
A125: 124 | B125: -9524533017 | C125: 392679731.5 | D125: 115207539.8 | E125: -9016645745
A126: 125 | B126: -5612966993 | C126: -164018671.2 | D126: -101351323.4 | E126: -5878336987
A127: 126 | B127: -9627041041 | C127: -210523281 | D127: 27919656.66 | E127: -9809644665
A128: 127 | B128: -1.794811772e+10 | C128: 316614412.8 | D128: 95971532.7 | E128: -1.753553177e+10
A129: 128 | B129: -1.659238011e+10 | C129: -53830040.83 | D129: -49576182.8 | E129: -1.669578633e+10
A130: 129 | B130: 1844361433 | C130: -498049133.9 | D130: -25161079.47 | E130: 1321151219
A131: 130 | B131: 2855014421 | C131: 573456959.9 | D131: 105643737.5 | E131: 3534115118
A132: 131 | B132: 212242082.8 | C132: 398209757.9 | D132: 228518592.1 | E132: 838970432.8
A133: 132 | B133: 875691926.9 | C133: 54067673.02 | D133: 30179317.79 | E133: 959938917.7
A134: 133 | B134: -1.366473821e+10 | C134: -424522897.9 | D134: -110644386.6 | E134: -1.41999055e+10
A135: 134 | B135: 3712273408 | C135: 19334063.51 | D135: -5714443.893 | E135: 3725893028
A136: 135 | B136: 7030769640 | C136: 450751772.7 | D136: 89083933.12 | E136: 7570605346
A137: 136 | B137: -1.179878434e+10 | C137: 289851451.3 | D137: 126048221.2 | E137: -1.138288467e+10
A138: 137 | B138: 94308616.03 | C138: 112279290.7 | D138: -8411008.753 | E138: 198176898
A139: 138 | B139: -1.219182235e+10 | C139: 297977766 | D139: 112422572.7 | E139: -1.178142201e+10
A140: 139 | B140: 1.044467964e+10 | C140: -70241181.7 | D140: -92878444.96 | E140: 1.028156001e+10
A141: 140 | B141: -7626566221 | C141: 46333780.01 | D141: 172741673.6 | E141: -7407490767
A142: 141 | B142: -474867491.9 | C142: -43025352.2 | D142: 12625223.57 | E142: -505267620.5
A143: 142 | B143: 1.872869594e+10 | C143: 795025155.5 | D143: 214473952.3 | E143: 1.973819504e+10
A144: 143 | B144: -1157722391 | C144: -314961886.8 | D144: -47245340.25 | E144: -1519929618
A145: 144 | B145: -2577377152 | C145: 201987423.1 | D145: -26271325.86 | E145: -2401661055
A146: 145 | B146: 7890963839 | C146: 47181915.17 | D146: 6432430.901 | E146: 7944578185
A147: 146 | B147: -4518540279 | C147: 339002758 | D147: 29219424.69 | E147: -4150318096
A148: 147 | B148: 8083287906 | C148: 63117433.64 | D148: -89913799.19 | E148: 8056491541
A149: 148 | B149: -4388662434 | C149: 58471878.85 | D149: 24230000 | E149: -4305960555
A150: 149 | B150: 4682721187 | C150: -204633565.1 | D150: 7426291.585 | E150: 4485513913
A151: 150 | B151: 7150833007 | C151: 201308074 | D151: -108233157.9 | E151: 7243907923
A152: 151 | B152: -506455676.2 | C152: 104297902.9 | D152: 29348624.25 | E152: -372809149.1
A153: 152 | B153: 9507395041 | C153: -338436462.9 | D153: 21803583.55 | E153: 9190762162
A154: 153 | B154: 1.505109794e+10 | C154: 498339049.4 | D154: 114135469 | E154: 1.566357246e+10
A155: 154 | B155: 1.243148695e+10 | C155: -524528511.7 | D155: -148740097.8 | E155: 1.175821834e+10
A156: 155 | B156: 8702697133 | C156: -85397414.69 | D156: -152576614.1 | E156: 8464723104
A157: 156 | B157: 5719862362 | C157: -358276459.7 | D157: -207419622.7 | E157: 5154166280
A158: 157 | B158: -2529480281 | C158: -71200290.55 | D158: 83920614.42 | E158: -2516759958
A159: 158 | B159: 7934341165 | C159: -155432447.6 | D159: -11080520.87 | E159: 7767828196
A160: 159 | B160: -8531556950 | C160: 373793193.5 | D160: 75627030.71 | E160: -8082136726
A161: 160 | B161: -9191029795 | C161: 220073452.6 | D161: 149876659.6 | E161: -8821079683
A162: 161 | B162: -6329366932 | C162: -10369111.59 | D162: 51927773.23 | E162: -6287808270
A163: 162 | B163: -1.005423513e+10 | C163: -229738233.5 | D163: -42884020.2 | E163: -1.032685738e+10
A164: 163 | B164: 5303096877 | C164: -218900457.8 | D164: 19169907.48 | E164: 5103366327
A165: 164 | B165: -4685103906 | C165: 18540317.1 | D165: -8218314.712 | E165: -4674781904
A166: 165 | B166: -9042134435 | C166: 491571849 | D166: 101088521.5 | E166: -8449474065
A167: 166 | B167: -1.051632233e+10 | C167: 377309967 | D167: 161576370.4 | E167: -9977435988
A168: 167 | B168: -4422525580 | C168: 165350923.1 | D168: 119560533.1 | E168: -4137614124
A169: 168 | B169: -3253354976 | C169: 385585232.8 | D169: -75363514.29 | E169: -2943133258
A170: 169 | B170: -4284100299 | C170: -19236014.27 | D170: 34529994.18 | E170: -4268806319
A171: 170 | B171: 1.654273198e+10 | C171: -315728715.8 | D171: -82766974.91 | E171: 1.614423629e+10
A172: 171 | B172: 1.997510998e+10 | C172: 227419359.1 | D172: 24721823.15 | E172: 2.022725116e+10
A173: 172 | B173: -1.350019919e+10 | C173: 110578885.4 | D173: 143086610.3 | E173: -1.324653369e+10
A174: 173 | B174: 7928808472 | C174: 182258977.8 | D174: 49367053.62 | E174: 8160434503
A175: 174 | B175: -5600638750 | C175: 297098718.8 | D175: -53695196.74 | E175: -5357235228
A176: 175 | B176: 4506567130 | C176: -581839697.5 | D176: -168373948.2 | E176: 3756353484
A177: 176 | B177: 3902258605 | C177: -318037257 | D177: 20033862.33 | E177: 3604255210
A178: 177 | B178: 6558339642 | C178: -60474640.06 | D178: 47275077.35 | E178: 6545140079
A179: 178 | B179: 6387857423 | C179: -218736936.1 | D179: -27775484.24 | E179: 6141345002
A180: 179 | B180: 1.049285318e+10 | C180: 229244162.1 | D180: 84650287.79 | E180: 1.080674763e+10
A181: 180 | B181: 1907939425 | C181: -194194590.6 | D181: 13617481.61 | E181: 1727362316
A182: 181 | B182: -1.067029403e+10 | C182: 491169580.7 | D182: 173481754 | E182: -1.00056427e+10
A183: 182 | B183: -6107272555 | C183: -30309666.01 | D183: -40443176.33 | E183: -6178025398
A184: 183 | B184: 4245851227 | C184: 95937572.84 | D184: -97360176.01 | E184: 4244428623
A185: 184 | B185: 7701573287 | C185: -196543919.7 | D185: -189247456.6 | E185: 7315781911
A186: 185 | B186: 2.799073327e+10 | C186: -215503996.1 | D186: -86147163.6 | E186: 2.768908211e+10
A187: 186 | B187: 4764304709 | C187: -300959338.1 | D187: 47194132.78 | E187: 4510539504
A188: 187 | B188: 516316314.8 | C188: 507062390 | D188: 93642419.22 | E188: 1117021124
A189: 188 | B189: -1.056379369e+10 | C189: 372195271.9 | D189: 37229784.8 | E189: -1.015436863e+10
A190: 189 | B190: 1.003666029e+10 | C190: 436672132 | D190: 91285156.97 | E190: 1.056461757e+10
A191: 190 | B191: 1.089738497e+10 | C191: -461639671.1 | D191: -87595544.93 | E191: 1.034814976e+10
A192: 191 | B192: 9862806462 | C192: 404593042.1 | D192: 141608630.5 | E192: 1.040900813e+10
A193: 192 | B193: 8961720781 | C193: -191601623.2 | D193: -26788885.83 | E193: 8743330272
A194: 193 | B194: 5408940493 | C194: -7560238.2 | D194: 32721577.14 | E194: 5434101832
A195: 194 | B195: 5035731968 | C195: -90275203.65 | D195: -16042336.1 | E195: 4929414428
A196: 195 | B196: -2697365868 | C196: 46959260.46 | D196: 5781152.96 | E196: -2644625455
A197: 196 | B197: 5294371753 | C197: -19576098.43 | D197: -870695.1948 | E197: 5273924959
A198: 197 | B198: 4487238912 | C198: 306409728.4 | D198: 29591812.57 | E198: 4823240453
A199: 198 | B199: -5756517433 | C199: -100014165.3 | D199: 297897.9173 | E199: -5856233701
A200: 199 | B200: 2663865595 | C200: -382443082.5 | D200: -166110046.9 | E200: 2115312466
... 9801 more rows
